fUST/lending_fUST_20250526
["ID","MTS","AMOUNT","RATE_DAILY","PERIOD"]
[362351692,1748209838071,-430.0,0.00019452,2]
[362351693,1748209838082,-430.0,0.00019452,2]
[362351694,1748209838092,-253.79721746,0.00019452,2]
[362351695,1748209838102,-430.0,0.00019452,2]
[362351696,1748209838112,-430.0,0.00019452,2]
[362351697,1748209838125,-430.0,0.00019452,2]
[362351698,1748209838135,-430.0,0.00019452,2]
[362351699,1748209838144,-430.0,0.00019452,2]
[362351700,1748209838154,-430.0,0.00019452,2]
[362351701,1748209838163,-430.0,0.00019452,2]
[362351702,1748209838173,-505.38,0.00019452,2]
[362351703,1748209838183,-298.066347,0.00019452,2]
[362351704,1748209838192,-298.066347,0.00019452,2]
[362351705,1748209838201,-430.0,0.00019452,2]
[362351707,1748209838210,-500.0,0.00019452,2]
[362351708,1748209838219,-430.0,0.00019452,2]
[362351709,1748209838229,-450.0,0.00019452,2]
[362351710,1748209838238,-298.066347,0.00019452,2]
[362351711,1748209838248,-298.066347,0.00019452,2]
[362351712,1748209838258,-430.0,0.00019452,2]
[362351713,1748209838267,-430.0,0.00019452,2]
[362351714,1748209838277,-370.0,0.00019452,2]
[362351715,1748209838286,-430.0,0.00019452,2]
[362351716,1748209838295,-430.0,0.00019452,2]
[362351717,1748209838304,-430.0,0.00019452,2]
[362351718,1748209838314,-430.0,0.00019452,2]
[362351719,1748209838323,-792.67,0.00019452,2]
[362351720,1748209838333,-430.0,0.00019452,2]
[362351721,1748209838342,-555.44,0.00019452,2]
[362351722,1748209838351,-430.0,0.00019452,2]
[362351723,1748209838361,-430.0,0.00019452,2]
[362351724,1748209838370,-430.0,0.00019452,2]
[362351725,1748209838379,-430.0,0.00019452,2]
[362351726,1748209838388,-430.0,0.00019452,2]
[362351727,1748209838397,-720.58,0.00019452,2]
[362351728,1748209838407,-500.34,0.00019452,2]
[362351729,1748209838416,-430.0,0.00019452,2]
[362351730,1748209838425,-430.0,0.00019452,2]
[362351731,1748209838434,-430.0,0.00019452,2]
[362351732,1748209838444,-430.0,0.00019452,2]
[362351733,1748209838453,-451.55,0.00019452,2]
[362351734,1748209838462,-430.0,0.00019452,2]
[362351735,1748209838471,-430.0,0.00019452,2]
[362351736,1748209838480,-902.93,0.00019452,2]
[362351737,1748209838491,-430.0,0.00019452,2]
[362351738,1748209838500,-430.0,0.00019452,2]
[362351739,1748209838509,-1707.19,0.00019452,2]
[362351740,1748209838519,-430.0,0.00019452,2]
[362351741,1748209838528,-430.0,0.00019452,2]
[362351742,1748209838537,-1069.38,0.00019452,2]
[362351743,1748209838547,-430.0,0.00019452,2]
[362351744,1748209838557,-430.0,0.00019452,2]
[362351745,1748209838568,-430.0,0.00019452,2]
[362351746,1748209838577,-430.0,0.00019452,2]
[362351747,1748209838587,-430.0,0.00019452,2]
[362351748,1748209838596,-430.0,0.00019452,2]
[362351749,1748209838605,-430.0,0.00019452,2]
[362351750,1748209838615,-1743.11,0.00019452,2]
[362351751,1748209838625,-1496.49,0.00019452,2]
[362351752,1748209838635,-430.0,0.00019452,2]
[362351753,1748209838645,-430.0,0.00019452,2]
[362351754,1748209838654,-430.0,0.00019452,2]
[362351755,1748209838663,-430.0,0.00019452,2]
[362351756,1748209838673,-430.0,0.00019452,2]
[362351757,1748209838682,-430.0,0.00019452,2]
[362351758,1748209838691,-430.0,0.00019452,2]
[362351759,1748209838701,-430.0,0.00019452,2]
[362351760,1748209838711,-679.82,0.00019452,2]
[362351761,1748209838721,-430.0,0.00019452,2]
[362351762,1748209838732,-1117.55,0.00019452,2]
[362351763,1748209838741,-518.13,0.00019452,2]
[362351764,1748209838750,-430.0,0.00019452,2]
[362351765,1748209838760,-1233.44,0.00019452,2]
[362351766,1748209838769,-258.58030035,0.00019452,2]
[362351767,1748209838778,-430.0,0.00019452,2]
[362351768,1748209838787,-615.03,0.00019452,2]
[362351769,1748209838796,-430.0,0.00019452,2]
[362351770,1748209838806,-430.0,0.00019452,2]
[362351771,1748209838816,-910.65320868,0.00019489,2]
[362351772,1748209838825,-701.71,0.0001952,2]
[362351773,1748209838834,-1220.01571473,0.00019521,2]
[362351774,1748209838844,-420.0,0.00019615,2]
[362351775,1748209838854,-960.0,0.00019623,2]
[362351776,1748209838863,-910.65320868,0.00019626,2]
[362351777,1748209838873,-500.83744052,0.00019636,2]
[362351778,1748209838882,-223.35908659,0.00019637,2]
[362351779,1748209838892,-500.0,0.00019637,2]
[362351780,1748209838902,-500.0,0.00019637,2]
[362351781,1748209838911,-500.0,0.00019637,2]
[362351782,1748209838921,-500.0,0.00019639,2]
[362351783,1748209838931,-500.0,0.00019656,2]
[362351784,1748209838940,-701.71,0.00019725,2]
[362351785,1748209838950,-701.71,0.00019725,2]
[362351786,1748209838960,-370.0,0.00019726,2]
[362351787,1748209838970,-327.65218454,0.00019726,2]
[362351788,1748209838980,-430.0,0.00019726,2]
[362351789,1748209838989,-440.00139921,0.00019726,2]
[362351790,1748209839001,-430.0,0.00019726,2]
[362351791,1748209839013,-436.44515137,0.00019726,2]
[362351792,1748209839023,-430.0,0.00019726,2]
[362351793,1748209839037,-433.43119107,0.00019726,2]
[362351794,1748209839047,-161.79,0.00019726,2]
[362351795,1748209839056,-386.42159089,0.00019726,2]
[362351796,1748209839066,-430.0,0.00019726,2]
[362351797,1748209839076,-430.0,0.00019726,2]
[362351798,1748209839085,-430.0,0.00019726,2]
[362351799,1748209839095,-430.0,0.00019726,2]
[362351800,1748209839104,-430.0,0.00019726,2]
[362351801,1748209839114,-430.0,0.00019726,2]
[362351802,1748209839126,-698.64,0.00019726,2]
[362351803,1748209839136,-430.0,0.00019726,2]
[362351804,1748209839146,-430.0,0.00019726,2]
[362351805,1748209839155,-518.27694409,0.00019726,2]
[362351806,1748209839166,-290.0,0.00019726,2]
[362351807,1748209839175,-430.0,0.00019726,2]
[362351808,1748209839185,-430.0,0.00019726,2]
[362351809,1748209839194,-430.0,0.00019726,2]
[362351810,1748209839204,-430.0,0.00019726,2]
[362351811,1748209839213,-601.66,0.00019726,2]
[362351812,1748209839222,-430.0,0.00019726,2]
[362351814,1748209839231,-260.0,0.00019726,2]
[362351815,1748209839240,-430.0,0.00019726,2]
[362351816,1748209839250,-430.0,0.00019726,2]
[362351817,1748209839259,-430.0,0.00019726,2]
[362351818,1748209839268,-1364.75,0.00019726,2]
[362351819,1748209839278,-430.0,0.00019726,2]
[362351820,1748209839288,-430.0,0.00019726,2]
[362351821,1748209839298,-430.0,0.00019726,2]
[362351822,1748209839307,-430.0,0.00019726,2]
[362351823,1748209839316,-430.0,0.00019726,2]
[362351824,1748209839325,-505.38,0.00019726,2]
[362351825,1748209839335,-298.066347,0.00019726,2]
[362351826,1748209839345,-430.0,0.00019726,2]
[362351827,1748209839354,-500.0,0.00019726,2]
[362351828,1748209839364,-430.0,0.00019726,2]
[362351829,1748209839374,-298.066347,0.00019726,2]
[362351830,1748209839383,-430.0,0.00019726,2]
[362351831,1748209839392,-430.0,0.00019726,2]
[362351832,1748209839402,-430.0,0.00019726,2]
[362351833,1748209839411,-430.0,0.00019726,2]
[362351834,1748209839420,-430.0,0.00019726,2]
[362351835,1748209839429,-792.67,0.00019726,2]
[362351836,1748209839439,-430.0,0.00019726,2]
[362351837,1748209839448,-555.44,0.00019726,2]
[362351838,1748209839457,-430.0,0.00019726,2]
[362351839,1748209839467,-430.0,0.00019726,2]
[362351840,1748209839476,-430.0,0.00019726,2]
[362351841,1748209839485,-720.58,0.00019726,2]
[362351842,1748209839494,-500.34,0.00019726,2]
[362351843,1748209839504,-430.0,0.00019726,2]
[362351844,1748209839513,-430.0,0.00019726,2]
[362351845,1748209839522,-430.0,0.00019726,2]
[362351846,1748209839532,-430.0,0.00019726,2]
[362351847,1748209839542,-902.93,0.00019726,2]
[362351848,1748209839551,-1707.19,0.00019726,2]
[362351849,1748209839561,-1069.38,0.00019726,2]
[362351850,1748209839570,-430.0,0.00019726,2]
[362351851,1748209839579,-430.0,0.00019726,2]
[362351852,1748209839589,-430.0,0.00019726,2]
[362351853,1748209839598,-430.0,0.00019726,2]
[362351854,1748209839607,-430.0,0.00019726,2]
[362351855,1748209839617,-430.0,0.00019726,2]
[362351856,1748209839626,-1743.11,0.00019726,2]
[362351857,1748209839635,-155.0,0.00019726,2]
[362351858,1748209839645,-1496.49,0.00019726,2]
[362351859,1748209839654,-430.0,0.00019726,2]
[362351860,1748209839664,-430.0,0.00019726,2]
[362351861,1748209839674,-430.0,0.00019726,2]
[362351862,1748209839683,-430.0,0.00019726,2]
[362351863,1748209839693,-430.0,0.00019726,2]
[362351864,1748209839703,-430.0,0.00019726,2]
[362351865,1748209839713,-430.0,0.00019726,2]
[362351866,1748209839722,-430.0,0.00019726,2]
[362351867,1748209839731,-679.82,0.00019726,2]
[362351868,1748209839740,-430.0,0.00019726,2]
[362351869,1748209839750,-1117.55,0.00019726,2]
[362351870,1748209839759,-518.13,0.00019726,2]
[362351871,1748209839768,-212.8,0.00019726,2]
[362351872,1748209839778,-1233.44,0.00019726,2]
[362351873,1748209839788,-443.68,0.00019726,2]
[362351874,1748209839797,-615.03,0.00019726,2]
[362351875,1748209839807,-430.0,0.00019726,2]
[362351876,1748209839817,-1220.01571473,0.00019728,2]
[362351877,1748209839826,-160.0,0.00019817,3]
[362351878,1748209839836,-637.0,0.000199,2]
[362351879,1748209839846,-852.04897221,0.00019901,2]
[362351880,1748209839855,-215.0738,0.00019934,2]
[362351881,1748209839865,-1220.01571473,0.00019934,2]
[362351882,1748209839875,-2200.0,0.00019981,2]
[362351883,1748209839885,-701.71,0.00019999,2]
[362351884,1748209839894,-701.71,0.00019999,2]
[362351885,1748209839904,-701.71,0.00019999,2]
[362351886,1748209839914,-701.71,0.00019999,2]
[362351887,1748209839924,-701.71,0.00019999,2]
[362351888,1748209839933,-701.8180297,0.00019999,2]
[362351889,1748209839944,-250.0,0.0002,2]
[362351890,1748209839954,-1114.40097001,0.0002,2]
[362351891,1748209839963,-430.0,0.0002,2]
[362351892,1748209839973,-430.0,0.0002,2]
[362351893,1748209839983,-430.0,0.0002,2]
[362351894,1748209839994,-698.64,0.0002,2]
[362351895,1748209840004,-430.0,0.0002,2]
[362351896,1748209840014,-530.0,0.0002,2]
[362351897,1748209840024,-430.0,0.0002,2]
[362351898,1748209840034,-430.0,0.0002,2]
[362351899,1748209840043,-430.0,0.0002,2]
[362351900,1748209840054,-601.66,0.0002,2]
[362351901,1748209840064,-430.0,0.0002,2]
[362351902,1748209840074,-430.0,0.0002,2]
[362351903,1748209840086,-423.3646321,0.0002,2]
[362351904,1748209840097,-430.0,0.0002,2]
[362351905,1748209840107,-1364.75,0.0002,2]
[362351906,1748209840117,-463.68,0.0002,2]
[362351907,1748209840127,-430.0,0.0002,2]
[362351908,1748209840137,-430.0,0.0002,2]
[362351909,1748209840149,-430.0,0.0002,2]
[362351910,1748209840159,-430.0,0.0002,2]
[362351911,1748209840169,-505.38,0.0002,2]
[362351912,1748209840178,-298.066347,0.0002,2]
[362351913,1748209840188,-430.0,0.0002,2]
[362351914,1748209840197,-500.0,0.0002,2]
[362351915,1748209840207,-430.0,0.0002,2]
[362351916,1748209840216,-298.066347,0.0002,2]
[362351917,1748209840226,-430.0,0.0002,2]
[362351918,1748209840239,-430.0,0.0002,2]
[362351919,1748209840249,-430.0,0.0002,2]
[362351920,1748209840258,-430.0,0.0002,2]
[362351921,1748209840267,-430.0,0.0002,2]
[362351922,1748209840277,-792.67,0.0002,2]
[362351923,1748209840286,-430.0,0.0002,2]
[362351924,1748209840296,-555.44,0.0002,2]
[362351925,1748209840305,-430.0,0.0002,2]
[362351926,1748209840314,-430.0,0.0002,2]
[362351927,1748209840324,-430.0,0.0002,2]
[362351928,1748209840333,-720.58,0.0002,2]
[362351929,1748209840343,-500.34,0.0002,2]
[362351930,1748209840352,-430.0,0.0002,2]
[362351931,1748209840362,-430.0,0.0002,2]
[362351932,1748209840371,-430.0,0.0002,2]
[362351933,1748209840380,-430.0,0.0002,2]
[362351934,1748209840390,-902.93,0.0002,2]
[362351935,1748209840399,-1707.19,0.0002,2]
[362351936,1748209840408,-1069.38,0.0002,2]
[362351938,1748209840418,-231.2,0.0002,2]
[362351940,1748209840427,-430.0,0.0002,2]
[362351941,1748209840437,-430.0,0.0002,2]
[362351942,1748209840446,-430.0,0.0002,2]
[362351943,1748209840456,-430.0,0.0002,2]
[362351944,1748209840466,-430.0,0.0002,2]
[362351945,1748209840476,-1743.11,0.0002,2]
[362351946,1748209840485,-1496.49,0.0002,2]
[362351947,1748209840495,-430.0,0.0002,2]
[362351948,1748209840505,-430.0,0.0002,2]
[362351949,1748209840515,-430.0,0.0002,2]
[362351950,1748209840525,-430.0,0.0002,2]
[362351951,1748209840534,-430.0,0.0002,2]
[362351952,1748209840549,-430.0,0.0002,2]
[362351953,1748209840558,-430.0,0.0002,2]
[362351954,1748209840567,-430.0,0.0002,2]
[362351955,1748209840577,-679.82,0.0002,2]
[362351956,1748209840587,-430.0,0.0002,2]
[362351957,1748209840597,-1117.55,0.0002,2]
[362351958,1748209840606,-518.13,0.0002,2]
[362351959,1748209840615,-158.0,0.0002,2]
[362351960,1748209840625,-1233.44,0.0002,2]
[362351961,1748209840635,-615.03,0.0002,2]
[362351962,1748209840644,-356.57914695,0.0002,2]
[362351963,1748209840653,-4000.0,0.00020131,4]
[362351964,1748209840663,-1220.01571473,0.00020141,2]
[362351965,1748209840672,-1000.0,0.00020185,2]
[362351966,1748209840682,-396.366242,0.00020187,2]
[362351967,1748209840692,-500.0,0.00020273,2]
[362351968,1748209840701,-430.0,0.00020273,2]
[362351969,1748209840711,-340.53,0.00020273,2]
[362351970,1748209840721,-430.0,0.00020273,2]
[362351971,1748209840730,-698.64,0.00020273,2]
[362351972,1748209840739,-430.0,0.00020273,2]
[362351973,1748209840749,-430.0,0.00020273,2]
[362351974,1748209840759,-430.0,0.00020273,2]
[362351975,1748209840769,-430.0,0.00020273,2]
[362351976,1748209840779,-601.66,0.00020273,2]
[362351977,1748209840789,-430.0,0.00020273,2]
[362351978,1748209840799,-1364.75,0.00020273,2]
[362351979,1748209840809,-430.0,0.00020273,2]
[362351980,1748209840819,-430.0,0.00020273,2]
[362351981,1748209840829,-565.00232136,0.00020273,2]
[362351982,1748209840839,-172.44359901,0.00020273,2]
[362351983,1748209840849,-505.38,0.00020273,2]
[362351984,1748209840859,-430.0,0.00020273,2]
[362351985,1748209840868,-500.0,0.00020273,2]
[362351986,1748209840878,-430.0,0.00020273,2]
[362351987,1748209840888,-430.0,0.00020273,2]
[362351988,1748209840897,-430.0,0.00020273,2]
[362351989,1748209840907,-430.0,0.00020273,2]
[362351990,1748209840916,-484.75062947,0.00020273,2]
[362351991,1748209840926,-792.67,0.00020273,2]
[362351992,1748209840936,-430.0,0.00020273,2]
[362351993,1748209840946,-555.44,0.00020273,2]
[362351994,1748209840955,-430.0,0.00020273,2]
[362351995,1748209840965,-430.0,0.00020273,2]
[362351997,1748209840974,-430.0,0.00020273,2]
[362351998,1748209840984,-720.58,0.00020273,2]
[362351999,1748209840994,-500.34,0.00020273,2]
[362352000,1748209841003,-430.0,0.00020273,2]
[362352001,1748209841013,-430.0,0.00020273,2]
[362352002,1748209841023,-430.0,0.00020273,2]
[362352003,1748209841033,-430.0,0.00020273,2]
[362352004,1748209841043,-902.93,0.00020273,2]
[362352005,1748209841054,-1707.19,0.00020273,2]
[362352006,1748209841063,-1069.38,0.00020273,2]
[362352007,1748209841074,-430.0,0.00020273,2]
[362352008,1748209841083,-430.0,0.00020273,2]
[362352009,1748209841095,-430.0,0.00020273,2]
[362352010,1748209841105,-430.0,0.00020273,2]
[362352011,1748209841115,-430.0,0.00020273,2]
[362352012,1748209841124,-1743.11,0.00020273,2]
[362352013,1748209841134,-1496.49,0.00020273,2]
[362352014,1748209841147,-430.0,0.00020273,2]
[362352015,1748209841156,-430.0,0.00020273,2]
[362352016,1748209841165,-430.0,0.00020273,2]
[362352017,1748209841175,-430.0,0.00020273,2]
[362352018,1748209841185,-430.0,0.00020273,2]
[362352019,1748209841194,-430.0,0.00020273,2]
[362352020,1748209841204,-430.0,0.00020273,2]
[362352021,1748209841214,-430.0,0.00020273,2]
[362352022,1748209841223,-679.82,0.00020273,2]
[362352023,1748209841233,-1117.55,0.00020273,2]
[362352024,1748209841378,-518.13,0.00020273,2]
[362352025,1748209841389,-1233.44,0.00020273,2]
[362352026,1748209841398,-615.03,0.00020273,2]
[362352027,1748209841408,-155.0,0.00020274,2]
[362352028,1748209841418,-1220.01571473,0.00020348,3]
[362352029,1748209841427,-298.066347,0.00020417,2]
[362352030,1748209841437,-298.066347,0.00020417,2]
[362352031,1748209841446,-382.07,0.00020539,2]
[362352032,1748209841456,-345.7405087,0.00020547,2]
[362352033,1748209841465,-430.0,0.00020547,2]
[362352034,1748209841475,-698.64,0.00020547,2]
[362352035,1748209841484,-465.29,0.00020547,2]
[362352036,1748209841494,-601.66,0.00020547,2]
[362352037,1748209841505,-430.0,0.00020547,2]
[362352038,1748209841515,-1364.75,0.00020547,2]
[362352039,1748209841525,-430.0,0.00020547,2]
[362352040,1748209841535,-505.38,0.00020547,2]
[362352041,1748209841545,-430.0,0.00020547,2]
[362352042,1748209841555,-500.0,0.00020547,2]
[362352043,1748209841566,-430.0,0.00020547,2]
[362352044,1748209841576,-430.0,0.00020547,2]
[362352045,1748209841588,-430.0,0.00020547,2]
[362352046,1748209841598,-430.0,0.00020547,2]
[362352047,1748209841609,-792.67,0.00020547,2]
[362352048,1748209841620,-430.0,0.00020547,2]
[362352049,1748209841630,-555.44,0.00020547,2]
[362352050,1748209841642,-430.0,0.00020547,2]
[362352051,1748209841653,-430.0,0.00020547,2]
[362352052,1748209841663,-430.0,0.00020547,2]
[362352053,1748209841672,-720.58,0.00020547,2]
[362352054,1748209841682,-500.34,0.00020547,2]
[362352055,1748209841692,-430.0,0.00020547,2]
[362352056,1748209841703,-430.0,0.00020547,2]
[362352057,1748209841713,-430.0,0.00020547,2]
[362352058,1748209841723,-430.0,0.00020547,2]
[362352059,1748209841735,-902.93,0.00020547,2]
[362352060,1748209841746,-1707.19,0.00020547,2]
[362352061,1748209841756,-1069.38,0.00020547,2]
[362352062,1748209841769,-430.0,0.00020547,2]
[362352063,1748209841780,-430.0,0.00020547,2]
[362352064,1748209841789,-430.0,0.00020547,2]
[362352065,1748209841800,-430.0,0.00020547,2]
[362352066,1748209841811,-263.24940544,0.00020547,2]
[362352067,1748209841823,-1743.11,0.00020547,2]
[362352068,1748209841833,-1496.49,0.00020547,2]
[362352069,1748209841843,-430.0,0.00020547,2]
[362352070,1748209841853,-430.0,0.00020547,2]
[362352071,1748209841863,-362.26,0.00020547,2]
[362352072,1748209841873,-157.78175415,0.00020547,2]
[362352073,1748209841883,-430.0,0.00020547,2]
[362352074,1748209841895,-430.0,0.00020547,2]
[362352075,1748209841905,-430.0,0.00020547,2]
[362352076,1748209841918,-430.0,0.00020547,2]
[362352077,1748209841927,-679.82,0.00020547,2]
[362352078,1748209841938,-1117.55,0.00020547,2]
[362352079,1748209841948,-518.13,0.00020547,2]
[362352080,1748209841958,-1233.44,0.00020547,2]
[362352081,1748209841970,-615.03,0.00020547,2]
[362352082,1748209841980,-1220.01571473,0.00020555,3]
[362352083,1748209841991,-155.02185706,0.00020575,2]
[362352084,1748209842001,-571.185871,0.00020673,2]
[362352085,1748209842012,-1500.0,0.00020733,2]
[362352086,1748209842023,-852.04897221,0.00020734,2]
[362352087,1748209842034,-155.02185706,0.0002074,2]
[362352088,1748209842044,-1220.01571473,0.00020762,3]
[362352089,1748209842055,-881.60233047,0.00020787,2]
[362352090,1748209842065,-212.541,0.00020821,2]
[362352091,1748209842075,-698.64,0.00020821,2]
[362352092,1748209842085,-601.66,0.00020821,2]
[362352093,1748209842095,-430.0,0.00020821,2]
[362352094,1748209842104,-1364.75,0.00020821,2]
[362352095,1748209842114,-430.0,0.00020821,2]
[362352096,1748209842123,-505.38,0.00020821,2]
[362352097,1748209842133,-298.066347,0.00020821,2]
[362352098,1748209842146,-430.0,0.00020821,2]
[362352099,1748209842155,-500.0,0.00020821,2]
[362352100,1748209842165,-430.0,0.00020821,2]
[362352101,1748209842174,-298.066347,0.00020821,2]
[362352102,1748209842183,-430.0,0.00020821,2]
[362352103,1748209842193,-430.0,0.00020821,2]
[362352104,1748209842202,-430.0,0.00020821,2]
[362352105,1748209842212,-792.67,0.00020821,2]
[362352106,1748209842221,-430.0,0.00020821,2]
[362352107,1748209842231,-555.44,0.00020821,2]
[362352108,1748209842241,-430.0,0.00020821,2]
[362352109,1748209842250,-430.0,0.00020821,2]
[362352110,1748209842259,-430.0,0.00020821,2]
[362352111,1748209842268,-720.58,0.00020821,2]
[362352112,1748209842277,-500.34,0.00020821,2]
[362352113,1748209842287,-430.0,0.00020821,2]
[362352114,1748209842296,-430.0,0.00020821,2]
[362352115,1748209842306,-430.0,0.00020821,2]
[362352116,1748209842316,-430.0,0.00020821,2]
[362352117,1748209842326,-902.93,0.00020821,2]
[362352118,1748209842335,-1707.19,0.00020821,2]
[362352119,1748209842345,-1069.38,0.00020821,2]
[362352120,1748209842354,-430.0,0.00020821,2]
[362352121,1748209842363,-430.0,0.00020821,2]
[362352122,1748209842373,-430.0,0.00020821,2]
[362352123,1748209842382,-430.0,0.00020821,2]
[362352124,1748209842391,-1743.11,0.00020821,2]
[362352125,1748209842401,-1496.49,0.00020821,2]
[362352126,1748209842410,-430.0,0.00020821,2]
[362352127,1748209842419,-430.0,0.00020821,2]
[362352128,1748209842429,-430.0,0.00020821,2]
[362352129,1748209842440,-430.0,0.00020821,2]
[362352130,1748209842450,-375.27291089,0.00020821,2]
[362352131,1748209842459,-430.0,0.00020821,2]
[362352132,1748209842468,-679.82,0.00020821,2]
[362352133,1748209842478,-1117.55,0.00020821,2]
[362352134,1748209842487,-518.13,0.00020821,2]
[362352135,1748209842497,-1233.44,0.00020821,2]
[362352136,1748209842507,-615.03,0.00020821,2]
[362352137,1748209842516,-155.0,0.00020822,2]
[362352138,1748209842525,-155.02185706,0.00020932,2]
[362352139,1748209842535,-1220.01571473,0.00020969,4]
[362352140,1748209842544,-2000.0,0.00021,2]
[362352141,1748209842554,-2000.0,0.00021,2]
[362352142,1748209842563,-10000.0,0.00021,5]
[362352143,1748209842573,-698.64,0.00021095,2]
[362352144,1748209842582,-601.66,0.00021095,2]
[362352145,1748209842592,-430.0,0.00021095,2]
[362352146,1748209842602,-1364.75,0.00021095,2]
[362352147,1748209842611,-430.0,0.00021095,2]
[362352148,1748209842621,-505.38,0.00021095,2]
[362352149,1748209842630,-298.066347,0.00021095,2]
[362352150,1748209842639,-430.0,0.00021095,2]
[362352151,1748209842648,-500.0,0.00021095,2]
[362352152,1748209842658,-430.0,0.00021095,2]
[362352153,1748209842667,-298.066347,0.00021095,2]
[362352154,1748209842676,-430.0,0.00021095,2]
[362352155,1748209842685,-430.0,0.00021095,2]
[362352156,1748209842695,-430.0,0.00021095,2]
[362352157,1748209842704,-792.67,0.00021095,2]
[362352158,1748209842714,-430.0,0.00021095,2]
[362352159,1748209842723,-555.44,0.00021095,2]
[362352160,1748209842733,-430.0,0.00021095,2]
[362352161,1748209842743,-430.0,0.00021095,2]
[362352162,1748209842752,-430.0,0.00021095,2]
[362352163,1748209842761,-720.58,0.00021095,2]
[362352164,1748209842771,-500.34,0.00021095,2]
[362352165,1748209842780,-430.0,0.00021095,2]
[362352166,1748209842789,-430.0,0.00021095,2]
[362352167,1748209842798,-430.0,0.00021095,2]
[362352168,1748209842808,-430.0,0.00021095,2]
[362352169,1748209842818,-902.93,0.00021095,2]
[362352170,1748209842828,-1707.19,0.00021095,2]
[362352171,1748209842838,-1069.38,0.00021095,2]
[362352172,1748209842848,-408.62828534,0.00021095,2]
[362352173,1748209842984,-21.37171466,0.00021095,2]
[362352174,1748209842994,-378.87539005,0.00021095,2]
[362352176,1748209843237,-450.0,0.00019178,2]
[362352178,1748209843247,-430.0,0.00019178,2]
[362352179,1748209843256,-12.47082374,0.00019452,2]
[362352180,1748209843268,-417.52917626,0.00019452,2]
[362352181,1748209843277,-227.68,0.00019726,2]
[362352182,1748209843287,-51.12460995,0.00021095,2]
[362352183,1748209843297,-430.0,0.00021095,2]
[362352184,1748209843306,-393.01584182,0.00021095,2]
[362352188,1748209843327,-36.98415818,0.00021095,2]
[362352189,1748209843336,-234.41584182,0.00021095,2]
[362352197,1748209843814,-1508.69415818,0.00021095,2]
[362352198,1748209843824,-1496.49,0.00021095,2]
[362352199,1748209843833,-430.0,0.00021095,2]
[362352200,1748209843843,-264.19539382,0.00021095,2]
[362352213,1748209846871,-430.0,0.00019178,2]
[362352214,1748209846881,-909.84,0.00019178,2]
[362352215,1748209846891,-430.0,0.00019452,2]
[362352216,1748209846901,-353.29662808,0.00019452,2]
[362352217,1748209846914,-556.54337192,0.00019452,2]
[362352218,1748209846924,-430.0,0.00019726,2]
[362352219,1748209846934,-909.84,0.00019726,2]
[362352220,1748209846944,-430.0,0.0002,2]